Cogmind - Beta 15 @@@ ROGUE MODE // 2025.10.10 @ 20:19:43 Player: weedlord420 Result: Self-destructed Performance ------------- Evolutions (1) 500 Regions Visited (4) 800 Robots Destroyed (46) 230 Value Destroyed (1233) 1233 Prototype IDs (1) 20 Alien Tech Used (0) 0 Bonus (125) 125 TOTAL SCORE: 2908 Bonus ------- Follower Combat Kills 141 Friendly Fire -16 Cogmind --------- Core Integrity 297/400 Matter 300/300 Energy 211/265 System Corruption 0% Temperature Cool (0) Movement Treading (240) Ox1 Location -9/Mines Parts ------- > --- POWER (1) -------- Reinforced Ion Engine > --- PROPULSION (2) --- Improved Treads Improved Treads > --- UTILITY (4) ------ High-capacity Storage Unit Hardened Light Armor Plating Shield Generator > --- WEAPON (2) ------- Improved Medium Laser Heavy Hammer > --- INVENTORY (20) --- Improved Treads Improved Treads Wheel Compact Wheel Armored Wheel Large Battery (0) Medium Matter Pod (100) Structural Scanner Machine Analyzer Hardened Light Armor Plating Hardened Light Armor Plating Hardened Light Armor Plating Shield Generator Recalibrator Improved Medium Laser Heavy Assault Rifle Grenade Launcher Rocket Launcher Datajack Mining Laser Peak State ------------ > --- POWER ------------ Reinforced Ion Engine > --- PROPULSION ------- Improved Treads Armored Wheel > --- UTILITY ---------- High-capacity Storage Unit Hardened Light Armor Plating Shield Generator Hacking Suite > --- WEAPON ----------- Improved Medium Laser Heavy Hammer > --- INVENTORY -------- Improved Treads Improved Treads Improved Treads Wheel Compact Wheel Large Battery Medium Matter Pod Structural Scanner Machine Analyzer Hardened Light Armor Plating Hardened Light Armor Plating Hardened Light Armor Plating Shield Generator Recalibrator Improved Medium Laser Heavy Assault Rifle Grenade Launcher Rocket Launcher Datajack Mining Laser [Rating: 22] Favorites ----------- Power Light Ion Engine Engine Light Ion Engine Propulsion Wheel Treads Improved Treads Wheel Wheel Utility High-capacity Storage Unit Device Shield Generator Storage High-capacity Storage Unit Hackware Hacking Suite Protection Hardened Light Armor Plating Weapon Light Assault Rifle Energy Gun EM Pulse Gun Energy Cannon Light EM Pulse Cannon Ballistic Gun Light Assault Rifle Launcher Grenade Launcher Impact Weapon Heavy Hammer Build | -11 -10 -10 -9 -9 ------- Run | Yrd Mat Min Mat Min Slots Evolved 2 | . . . 2 . Power . | . . . . . Propulsion . | . . . . . Utility 2 | . . . 2 . Weapon . | . . . . . Parts Attached 32 | 6 11 2 13 . Power 4 | 1 1 1 1 . Engine 4 | 1 1 1 1 . Core . | . . . . . Reactor . | . . . . . Propulsion 9 | 2 5 1 1 . Treads 3 | . 3 . . . Leg . | . . . . . Wheel 6 | 2 2 1 1 . Hover . | . . . . . Flight . | . . . . . Utility 10 | 1 3 . 6 . Device 1 | . . . 1 . Storage 3 | 1 2 . . . Processor . | . . . . . Hackware 1 | . . . 1 . Protection 5 | . 1 . 4 . Artifact . | . . . . . Weapon 9 | 2 2 . 5 . Energy Gun 3 | 1 . . 2 . Energy Cannon 2 | . . . 2 . Ballistic Gun 2 | 1 . . 1 . Ballistic Cannon . | . . . . . Launcher 1 | . 1 . . . Special Weapon . | . . . . . Impact Weapon 1 | . 1 . . . Slashing Weapon . | . . . . . Piercing Weapon . | . . . . . Special Melee Weapon . | . . . . . Unidentified Prototypes 1 | . . . 1 . Corrupted Parts 1 | . . 1 . . System Corruption 7 | . . 7 . . Parts Lost 9 | . 5 2 2 . Power 2 | . 1 1 . . Propulsion 3 | . 2 1 . . Utility 2 | . 1 . 1 . Weapon 2 | . 1 . 1 . Highest Loss Streak 2 | . 2 1 1 . To Critical Strikes . | . . . . . Average Backups 15 | 2 12 18 19 18 Power . | . . 1 . . Propulsion 4 | 1 4 4 4 5 Utility 7 | . 6 9 9 7 Weapon 2 | . 1 2 3 5 Tool/Special . | . . . . . Unused Backups 18 | . 2 . 3 13 Power . | . . . . . Propulsion 3 | . 2 . . 1 Utility 10 | . . . 2 8 Weapon 4 | . . . 1 3 Tool/Special 1 | . . . . 1 Average Slot Usage (%) 90 | . 94 68 98 94 Engine 9 | . 13 . 11 11 Treads 5 | . 6 . 6 22 Wheel 19 | . 20 25 15 . Device 1 | . . . 4 11 Storage 12 | . 14 14 11 11 Hackware 2 | . . . 8 . Protection 11 | . 10 . 19 17 Energy Gun 5 | . 8 . 4 11 Ballistic Gun 11 | . 12 13 10 4 Impact Weapon 7 | . 6 14 5 6 Peak Build Rating 22 | 6 13 10 22 21 Average Rating 12 | 3 10 8 18 19 On Entrance 9 | . 6 10 10 21 Naked Turns . | . . . . . Heaviest Build 68 | 11 53 49 68 63 Greatest Support 46 | 26 46 26 46 46 Greatest Overweight (x) 5 | . 5 2 2 1 Average Overweight (x) 1 | . 1 1 1 1 Largest Inventory Capacity 20 | 8 20 20 20 20 Average Capacity 18 | 7 18 20 20 20 Most Carried 20 | 5 17 19 20 20 Average Carried 15 | 3 12 18 19 18 Final Capacity 20 | 8 20 20 20 20 Final Carried 20 | 3 16 17 19 20 Class Distribution -------------------- 100% | Mutant Dominant Class ---------------- Mutant | -10/Materials Mutant | -10/Mines Mutant | -9/Materials Mutant | -9/Mines Resources | -11 -10 -10 -9 -9 ----------- Run | Yrd Mat Min Mat Min Matter Collected 1042 | 176 473 45 323 25 Remotely . | . . . . . Salvage Created 1636 | . 789 170 600 77 Parts 60 | . 31 3 25 1 Haulers Intercepted 1 | . . . 1 . Recyclers Shooed 3 | . 3 . . . Parts Field Recycled . | . . . . . Retrieved Matter . | . . . . . Parts Self-Destructed . | . . . . . Prevented . | . . . . . Kills | -11 -10 -10 -9 -9 ------- Run | Yrd Mat Min Mat Min Combat Hostiles Destroyed 33 | . 14 5 12 2 Melee 4 | . 3 1 . . Guns 12 | . 3 . 8 1 Cannons 2 | . . . 2 . AOE 3 | . . 3 . . Classes Destroyed 12 | . 8 . 3 1 Worker 1 | . 1 . . . Builder 3 | . 2 . 1 . Hauler 1 | . . . 1 . Recycler 3 | . 2 1 . . Mechanic 1 | . 1 . . . Operator 2 | . 1 . 1 . Watcher 2 | . 2 . . . Swarmer 6 | . 3 3 . . Grunt 23 | . 11 2 9 1 Brawler 1 | . . . 1 . Duelist 1 | . . . . 1 Sentry 2 | . . . 2 . Best Kill Streak 6 | . 6 3 4 2 Combat Bots Only 3 | . 3 3 3 2 Max Kills in Single Turn 2 | . 2 2 2 1 Gunslinging . | . . . . . Exploded 2 | . . 2 . . Melee 1 | . 1 1 . . Uniques/NPCs Destroyed . | . . . . . Combat | -11 -10 -10 -9 -9 -------- Run | Yrd Mat Min Mat Min Hostile Shots Fired 168 | . 76 10 51 31 Missed 41 | . 22 3 11 5 Hits 127 | . 54 7 40 26 Melee 9 | . . . . 9 Projectile 118 | . 54 7 40 17 Critical Strikes 7 | . 2 1 2 2 Damage Taken 1527 | . 641 102 427 357 Core 239 | . 101 35 49 54 Absorbed by Shields 241 | . . . 122 119 Core Remaining (%) 72 | 100 . 45 . . Volleys Fired 88 | . 48 3 29 8 Largest 2 | . 2 1 2 2 Hottest 112 | . 60 30 112 79 Shots Fired 150 | . 81 3 53 13 Gun 131 | . 79 . 39 13 Cannon 14 | . . . 14 . Launcher 5 | . 2 3 . . Special . | . . . . . Kinetic 78 | . 44 . 29 5 Thermal 18 | . . . 10 8 Explosive 5 | . 2 3 . . Electromagnetic 49 | . 35 . 14 . Robot Hit Streak 11 | . 7 3 11 3 Robot Miss Streak 6 | . 6 1 5 3 Penetration Max . | . . . . . Secondary Targets 1 | . . . 1 . Max Gunslinging Chain 1 | . . . 1 . Shots Hit Robots 134 | . 67 8 47 12 Core Hits 43 | . 21 4 15 3 Critical Kills . | . . . . . Critical Parts Destroyed 7 | . 4 1 2 . Critical Strikes 9 | . 4 1 3 1 Burn 2 | . . . 1 1 Smash 7 | . 4 1 2 . Melee Attacks 71 | . 37 6 22 6 Impact 71 | . 37 6 22 6 Slashing . | . . . . . Piercing . | . . . . . Sneak Attacks 3 | . 2 1 . . Combat Hostiles 1 | . 1 . . . Follow-up Attacks . | . . . . . Damage Inflicted 3703 | . 1867 434 1093 309 Guns 964 | . 377 . 423 164 Cannons 244 | . . . 244 . Explosions 333 | . 137 167 29 . Melee 2162 | . 1353 267 397 145 Ramming . | . . . . . Kinetic 494 | . 167 . 282 45 Thermal 426 | . 137 . 170 119 Explosive 167 | . . 167 . . Electromagnetic 454 | . 210 . 244 . Impact 2162 | . 1353 267 397 145 Slashing . | . . . . . Piercing . | . . . . . Highest Corruption 7 | . . 7 . . Average Corruption 7 | . . 7 . . Corruption Purged . | . . . . . Corruption Blocked . | . . . . . Overload Shots . | . . . . . Overflow Damage 684 | . 459 109 83 33 Projectiles . | . . . . . Explosions 14 | . . 14 . . Melee 670 | . 459 95 83 33 Knockbacks 5 | . 4 1 . . Impact 5 | . 4 1 . . Kinetic . | . . . . . Secondary . | . . . . . Self-Inflicted Damage 49 | . . 32 17 . Shots 3 | . . 2 1 . Rammed . | . . . . . Targets Rammed . | . . . . . Kicked . | . . . . . Crushed . | . . . . . Highest Temperature 311 | . 120 4 311 283 Average Temperature 91 | . 29 4 130 119 Received Heat Transfer 624 | . 321 54 181 68 Effects 2 | . . . 1 1 Energy Bleed 1 | . . . . 1 Interference 1 | . . . 1 . Siege Activations . | . . . . . Martial Activations . | . . . . . Shielding Activations . | . . . . . Robots Disrupted . | . . . . . Combat Hostiles . | . . . . . Robots Corrupted 15 | . 9 2 3 1 Combat Hostiles 12 | . 8 1 2 1 Parts Fried 15 | . 8 3 1 3 Impact Corruptions 26 | . 19 3 3 1 Robots Melted . | . . . . . Combat Hostiles . | . . . . . Parts Melted . | . . . . . Heat Transferred 853 | . 100 . 420 333 Parts Sabotaged . | . . . . . Parts Stolen . | . . . . . Parts Stripped . | . . . . . Power Chain Reactions 3 | . 2 . 1 . Alert | -11 -10 -10 -9 -9 ------- Run | Yrd Mat Min Mat Min Maximum Alert Level . | . . . . . Low Security (%) 100 | 100 100 100 100 100 Level 1 . | . . . . . Level 2 . | . . . . . Level 3 . | . . . . . Level 4 . | . . . . . Level 5 . | . . . . . High Security . | . . . . . Max Security . | . . . . . Peak Influence 140 | . 140 134 138 76 Initial 51 | . . 51 . 46 Average 38 | . 34 36 46 56 Influence Increases 1312 | . 538 165 559 50 Destroy 0b10 Robot/C 760 | . 280 100 340 40 Destroy 0b10 Robot/NC 65 | . 45 5 15 . Destroy Leader 186 | . 74 20 82 10 Allied During Kill 51 | . . 17 34 . Successful Hack 80 | . 48 . 32 . Disable Machine 60 | . 30 15 15 . Destroy Structure 35 | . 16 8 11 . Lose Combat Pursuer 75 | . 45 . 30 . Influence Decreases 1246 | . 406 296 440 104 Entered New Map 156 | . . 81 1 74 Time Decay 939 | . 356 205 348 30 Lost Part 70 | . 50 10 10 . Lost Ally 80 | . . . 80 . Purge Threat 1 | . . . 1 . Squads Dispatched 7 | . 3 . 4 . Investigation 5 | . 2 . 3 . Extermination . | . . . . . Reinforcement 2 | . 1 . 1 . Assault . | . . . . . Garrison . | . . . . . Intercept . | . . . . . Searches Triggered . | . . . . . Construction Impeded . | . . . . . Haulers Reinforced . | . . . . . Active Scanning Responses . | . . . . . Cargo Convoy Interrupts . | . . . . . Stealth | -11 -10 -10 -9 -9 --------- Run | Yrd Mat Min Mat Min Distress Signals 2 | . 2 . . . Communications Jammed . | . . . . . Distress Signals . | . . . . . Times Spotted 56 | . 26 5 23 2 Peak Tracking Total 3 | . 3 2 3 2 Tactical Retreats 4 | . 3 . 1 . Traps | -11 -10 -10 -9 -9 ------- Run | Yrd Mat Min Mat Min Traps Triggered 2 | . 1 . 1 . Indirectly . | . . . . . Trap Hack Attempts . | . . . . . Triggered . | . . . . . Disarmed . | . . . . . Reprogrammed . | . . . . . Reused . | . . . . . Traps Extracted . | . . . . . Installed . | . . . . . Triggered . | . . . . . Machines | -11 -10 -10 -9 -9 ---------- Run | Yrd Mat Min Mat Min Machines Disabled 4 | . 2 1 1 . Max in Single Turn 1 | . 1 1 1 . Machines Repaired . | . . . . . Machines Dismantled . | . . . . . Machines Sabotaged . | . . . . . Overloaded Fab Kills . | . . . . . Hacking | -11 -10 -10 -9 -9 --------- Run | Yrd Mat Min Mat Min Machines Accessed 15 | . 8 . 7 . Terminals 13 | . 7 . 6 . Fabricators . | . . . . . Repair Stations . | . . . . . Recycling Units 2 | . 1 . 1 . Scanalyzers . | . . . . . Garrison Access . | . . . . . Total Hacks 58 | . 28 . 30 . Successful 34 | . 14 . 20 . Failed 23 | . 14 . 9 . Catastrophic 1 | . . . 1 . Database Lockouts 1 | . . . 1 . Manual 45 | . 22 . 23 . Terminals 50 | . 24 . 26 . Fabricators . | . . . . . Repair Stations . | . . . . . Recycling Units 8 | . 4 . 4 . Scanalyzers . | . . . . . Garrison Access . | . . . . . Terminal Hacks 13 | . 5 . 8 . Robot Analysis 5 | . 4 . 1 . Machine Index 1 | . . . 1 . Terminal Index 2 | . 1 . 1 . Unreport Threat 1 | . . . 1 . Locate Traps 2 | . . . 2 . Registered Components 1 | . . . 1 . Registered Prototypes 1 | . . . 1 . Fabricator Hacks . | . . . . . Repair Station Hacks . | . . . . . Recycling Unit Hacks 3 | . 1 . 2 . Retrieve Components 3 | . 1 . 2 . Scanalyzer . | . . . . . Garrison Access Hacks . | . . . . . Unauthorized Hacks 18 | . 8 . 10 . Terminals 14 | . 6 . 8 . Track 1 | . . . 1 . Botnet 11 | . 5 . 6 . Operators 2 | . 1 . 1 . Fabricators . | . . . . . Repair Stations . | . . . . . Recycling Units 4 | . 2 . 2 . Reject 2 | . 1 . 1 . Mask 2 | . 1 . 1 . Scanalyzers . | . . . . . Garrison Access . | . . . . . Data Cores Recovered . | . . . . . Used . | . . . . . Hacking Detections 14 | . 8 . 6 . Full Trace Events 1 | . . . 1 . Feedback Events . | . . . . . Feedback Blocked . | . . . . . Robot Schematics Acquired . | . . . . . Robots Built . | . . . . . Authchips . | . . . . . Time . | . . . . . Total Robot Build Rating . | . . . . . Part Schematics Acquired . | . . . . . Parts Built . | . . . . . Authchips . | . . . . . Time . | . . . . . Total Part Build Rating . | . . . . . Parts Repaired . | . . . . . Time . | . . . . . Parts Recycled . | . . . . . Recycled Matter . | . . . . . Retrieved Matter . | . . . . . Retrieved Components 3 | . 2 . 1 . Parts Scanalyzed . | . . . . . Part Schematics Acquired . | . . . . . Parts Damaged . | . . . . . Bothacking | -11 -10 -10 -9 -9 ------------ Run | Yrd Mat Min Mat Min Used RIF Installer . | . . . . . Robots Hacked . | . . . . . Non-combat . | . . . . . Combat . | . . . . . Robot Hacks Applied . | . . . . . Relay Couplers Released . | . . . . . Fabnet Peak Effective % . | . . . . . Robots Rewired . | . . . . . Allies Hacked . | . . . . . Hacks Repelled . | . . . . . Allies | -11 -10 -10 -9 -9 -------- Run | Yrd Mat Min Mat Min Total Allies 6 | . . 6 . . Largest Group 6 | . . 6 5 . Highest-Rated Group 115 | . . 115 84 . Highest-Rated Ally 31 | . . 31 31 . Total Orders . | . . . . . Ally Attacks 41 | . . . 41 . Total Damage 415 | . . . 415 . Kills 5 | . . . 5 . Allies Corrupted . | . . . . . Allies Melted . | . . . . . Intel | -11 -10 -10 -9 -9 ------- Run | Yrd Mat Min Mat Min Active Infowar (turns) . | . . . . . Robot Analysis Total 5 | . 4 . 1 . Derelict Logs Recovered 1 | . . 1 . . Drone Launches . | . . . . . Drone Recoveries . | . . . . . Exploration | -11 -10 -10 -9 -9 ------------- Run | Yrd Mat Min Mat Min Turns Passed 3034 | 55 1284 660 975 60 Spaces Moved 1827 | 47 750 548 475 7 Core 17 | 17 . . . . Treads 154 | . 86 . 61 7 Legs . | . . . . . Wheels 1656 | 30 664 548 414 . Hover . | . . . . . Flight . | . . . . . Fastest Speed 50 | 50 90 105 105 240 Average Speed 119 | 75 118 109 134 240 Slowest Speed 240 | 90 240 130 240 240 Overloaded Moves . | . . . . . Propulsion Burnouts . | . . . . . Robots Hopped . | . . . . . Potential Cave-ins . | . . . . . Cave-ins Triggered . | . . . . . Exploration Rate (%) 47 | 3 92 94 46 3 Regions Visited 4 Branch Regions 2 Pre-discovered Areas 1 | . . 1 . . Known Exits Taken . | . . . . . Unknown Exits Taken 4 | 1 1 1 1 . Scrap Searched 1 | . . 1 . . Spaces Dug 9 | . 1 . 8 . Terrain Destroyed 33 | . 14 8 11 . Melee 9 | . 1 . 8 . Projectile . | . . . . . AOE 24 | . 13 8 3 . Terrain Rammed . | . . . . . Walls Destroyed . | . . . . . Machines Disabled . | . . . . . Actions | -11 -10 -10 -9 -9 --------- Run | Yrd Mat Min Mat Min Total 2408 | 65 1002 594 720 27 Wait 304 | 5 118 31 149 1 Move 1823 | 46 749 547 474 7 Hop . | . . . . . Pick Up 46 | 8 21 3 11 3 Fast Attach 5 | 1 . . 4 . Attach 18 | 5 5 2 5 1 Detach 1 | . . . 1 . Swap 37 | . 20 2 15 . Drop 15 | . 4 . 10 1 Fire 88 | . 48 3 29 8 Melee 71 | . 37 6 22 6 Ram . | . . . . . Kick . | . . . . . Crush . | . . . . . Escape Stasis . | . . . . . Rewire . | . . . . . Trap . | . . . . . Miscellaneous . | . . . . . Route ------- -11/Scrapyard -10/Materials (discovered 4 exits: *Mat x3 / [*Min]) -10/Mines (discovered 3 exits: *Mat x2 / [*Exi]) -9/Materials -9/Mines History --------- Turn | Location | Event 3 | -11/Scrapyard | Discovered new exit (range 16) 56 | -11/Scrapyard | Entered Materials 282 | -10/Materials | Discovered new exit (range 16) 315 | -10/Materials | Build established: Mutant 385 | -10/Materials | Discovered new exit (range 14) 744 | -10/Materials | Discovered new exit (range 10) 1092 | -10/Materials | Discovered new exit (range 4) 1340 | -10/Materials | Entered Mines 1413 | -10/Mines | Received a Mining Laser from a helpful Derelict 1465 | -10/Mines | Discovered new exit (range 12) 1484 | -10/Mines | Assisted by bots powering up and referring to "LRC-V3" 1790 | -10/Mines | Deemed a non-threat by the Exiles lab entrance 1790 | -10/Mines | Discovered new exit (range 5) 1835 | -10/Mines | Discovered new exit (range 7) 1837 | -10/Mines | Core integrity fell below 50% 2000 | -10/Mines | Entered Materials 2000 | -9/Materials | Accompanied by 5 allies 2000 | -9/Materials | Evolved 2 slots: Utility x2 2006 | -9/Materials | Led the pair of lost Derelicts to an unsafe place 2313 | -9/Materials | Central database locked down 2947 | -9/Materials | Discovered new exit (range 8) 2975 | -9/Materials | Entered Mines 3035 | -9/Mines | Self-destructed Last Messages --------------- 02991_ Acquired Hvy. Assault Rifle. 02992_ Dropped Lrg. Battery. 02993_ Extracted 200 energy. 03003_ Hrd. Light Armor Plating severed. 03007_ Destroyed Imp. Ion Engine. 03007_ L-31 Rogue system corrupted by crushing effect. 03008_ L-31 Rogue system terminally corrupted. 03008_ Melee Analysis Suite fried. 03008_ Katana fried. 03008_ Imp. Aluminum Leg fried. 03010_ G-34 Mercenary suffers critical hit (Burn). 03014_ G-34 Mercenary destroyed. 03016_ Acquired Lrg. Battery. 03020_ Acquired Hrd. Light Armor Plating. 03023_ Acquired 25 matter. 03033_ R-06 Scavenger collects Aluminum Leg. 03035_ Connecting with Terminal... 03035_ Current location identified: Mines Map ----- +----------------------------------------------------+ | ???????????????????????????? | | ???????????????????????????? | | ???????????????????????????? | | ???????????????????????????? | | ???????????????????????????? | | ???????????????????????????? | | ???????????????????????????? | | ???????????????????????????? | | ???????????????????????????? | | ???????????????????????????? | | ???????????????????????????? | | ???????????????????????????? | | ???????????????????????????? | | ???????????????????????????? | | ???????????????????????????? | | ???????????????????????????? | | ???????????????????????????? | | ???????????????????????????? | | ???????????????????????????? | | ???????????????????????????? | | ????????????????????#######? | | ????????????????????# #? | | ?????????# ######## #? | | ???????? #? | | ???????????????###### %#? | | ????????????????????# %@#? | | ????????????????????# r T# | | ????????????????????######## | | ???????????????????????????? | | ???????????????????????????? | | ???????????????????????????? | | ???????????????????????????? | | ???????????????????????????? | | ???????????????????????????? | | ???????????????????????????? | | ???????????????????????????? | | ???????????????????????????? | | ???????????????????????????? | | ???????????????????????????? | | ???????????????????????????? | | ???????????????????????????? | | ???????????????????????????? | | ???????????????????????????? | | ???????????????????????????? | | | | | | | | | | | | | +----------------------------------------------------+ Best States ------------- Heat Dissipation 28 Energy Generation 12 Energy Capacity 265 Matter Stores 300 Matter Capacity 300 Sight Range 16 Terrain Scan Density 10 Armor Coverage 300 Propulsion Shielding 33 Evasion (%) 50 Recoil Reduction 2 Offensive Hacking 10 Item Schematics ----------------- None Robot Schematics ------------------ None Fabricated ------------ Nothing Repaired ---------- Nothing Alien Tech Used ----------------- None Achievements -------------- None Challenges ------------ None Game ------ Seed AuthchipSubdwellerMatterbank Manual? 0 Play Time 00:25:34 Cumulative 106.1 hours Start 2025.10.09 @ 19:21:38 End 2025.10.10 @ 20:19:43 Sessions 3 Manual Loads 0 Difficulty Rogue Special Mode None Game No. 169 Rogue 168 Adventurer 1 Explorer 0 Win Type - Total 1 Types 0/0/0/1/0/0/0/0/0/0 Lore% 58 Gallery% 53 Achievement% 49 Wizard Run 0 Options --------- Layout 1 ASCII 0 Keyboard 0 Movement Mouse Keybinds 0 Fullscreen 1 Font 48/Smallcaps Map View 50x35 Zoom Use 0% Tactical HUD 1 Map Filters NONE Filters NONE Steam 1 RUN: 83ba3cb9-8094-421b-947b-cfe727b6c51b